[Event "EU-ch 12th"]
[Site "Aix les Bains"]
[Date "2011.03.22"]
[Round "1"]
[White "Erdogdu, Mert"]
[Black "Caruana, Fabiano"]
[Result "0-1"]
[ECO "A58"]
[WhiteElo "2423"]
[BlackElo "2716"]
[Annotator "Marchand,A/Primel,D"]
[PlyCount "100"]
[EventDate "2011.03.22"]
[EventType "swiss"]
[EventRounds "11"]
[EventCountry "FRA"]
[SourceTitle "CBM 142 Extra"]
[Source "ChessBase"]
[SourceDate "2011.06.27"]
[SourceVersion "1"]
[SourceVersionDate "2011.06.27"]
[SourceQuality "1"]
[TimeControl "40/5400+30:1800+30"]

1. d4 Nf6 2. c4 c5 3. d5 b5 4. cxb5 a6 5. bxa6 (5. f3 e6 (5... axb5 6. e4) 6.
e4 exd5 7. e5 Qe7 8. Qe2 Ng8 9. Nc3 Bb7 10. Nh3 $13) 5... g6 6. Nc3 Bxa6 7. g3
(7. e4 Bxf1 8. Kxf1 Bg7 9. g3 d6 10. Kg2 O-O 11. Nf3 Nbd7 12. a4 (12. Re1)
12... Qa5 13. Ra3 Nb6 $146 {Brunello,S (2575)-Caruana,F (2727) ITA 71th Ch
Perugia 2011 (2) 1/2}) 7... d6 8. Bg2 Nbd7 (8... Bg7 9. Nf3 Nfd7 $5 {Cette
idée de S.KASPAROV est devenue trés populaire récemment}) 9. Nf3 Bg7 10. Rb1 (
10. O-O) 10... O-O (10... Nb6) 11. O-O Qa5 12. Bd2 {[%cal Gd2a5]} Ng4 (12...
Rfb8 {La grande ligne} 13. Qc2 Ng4 14. b3 Nge5 15. Ne1 (15. Nxe5)) 13. Qc2 (13.
Qc1 Rfb8 14. b3 Qc7) 13... Nge5 14. b3 (14. Nxe5 {Plus courant} Nxe5 15. b3 Qa3
16. Rfd1 Rfc8 17. Be1 Rab8 18. h3 c4 19. Kh2 Nd7 20. bxc4 Bxc4 21. Rxb8 Nxb8
22. Qc1 Qa7 23. Qf4 Bxa2 24. Nxa2 Qxa2 25. Qe4 Bf6 26. f4 Nd7 27. Bf3 Rc4 28.
Qb1 Qxb1 29. Rxb1 h5 30. Rb4 Rc2 {Lazarev,V (2443)-Brunner,N (2450)/Mulhouse
2011/Mega2011 Update 23/1/2-1/2 (34)}) 14... Nxf3+ (14... Rfb8 {Plus courant}
15. Nxe5 Nxe5 16. a4) 15. Bxf3 Qa3 $5 $146 {[%csl Ra2]} (15... Rfb8 {Zaiatz,E 
(2332)-Kostiuk,T (2277) RUS-Cup 300 years (Women) 2003 (6) 1/2}) 16. Bc1 (16.
h4 $5 {[%cal Gh4h5,Gg1g2,Gf1h1]} Nb6 (16... Rfb8 17. h5) 17. h5 c4 18. Kg2 Rfb8
19. hxg6 hxg6 20. Rh1 $14) 16... Qb4 17. Bd2 {[%cal Gd2b4]} Ne5 18. Bg2 c4 19.
Ne4 (19. Rfc1) 19... cxb3 $1 20. axb3 (20. Rxb3 Qa4 {[%csl Ra2][%cal Ga4c2,
Ga6e2]}) 20... Qb6 21. Be3 Qb5 22. Rfe1 Ng4 $1 {Les pièces Blanches sont assez
mal coordonnées} 23. Bc1 Bb7 $132 {[%csl Rd5]} 24. h3 Rfc8 $15 {[%csl Rc2]} 25.
Qd1 Ne5 26. Bb2 Qb4 27. f4 Nd7 28. Bxg7 Kxg7 29. Rb2 (29. Qd2 Qxd2 30. Nxd2 {
[%cal Gg2d5]} Rc2 $36) 29... Bxd5 $17 30. Qd2 Rcb8 31. Qxb4 Rxb4 32. Nf2 Bxg2
33. Nd3 Rb5 34. Kxg2 Ra3 {[%csl Rb3]} 35. Rc1 (35. Reb1) (35. b4 Nf6) 35... Nf6
36. b4 Nd5 37. Kf2 Nc3 38. Rbc2 Nd5 39. Rb2 f5 40. Rc4 Nc3 41. Kf3 (41. Rc2
Nd1+ 42. Kf3) 41... e5 $36 42. Rc7+ Kh6 43. fxe5 dxe5 44. Kg2 Nxe2 45. Rc5 Rxc5
46. Nxc5 $6 $138 (46. bxc5 e4 (46... Rxd3 47. Rxe2 e4 48. Rc2 {[%csl Gc2,Gc5]
[%cal Gc5c8]})) 46... f4 47. Nb3 e4 48. b5 f3+ 49. Kh2 e3 50. b6 f2 {Temps des
Blancs 47s Temps des Noirs 28mns} 0-1

[Event "EU-ch 12th"]
[Site "Aix les Bains"]
[Date "2011.03.26"]
[Round "5"]
[White "Gritsak, Orest"]
[Black "Caruana, Fabiano"]
[Result "1/2-1/2"]
[ECO "A87"]
[WhiteElo "2539"]
[BlackElo "2716"]
[PlyCount "45"]
[EventDate "2011.03.22"]
[EventType "swiss"]
[EventRounds "11"]
[EventCountry "FRA"]
[SourceTitle "CBM 142 Extra"]
[Source "ChessBase"]
[SourceDate "2011.06.27"]
[SourceVersion "1"]
[SourceVersionDate "2011.06.27"]
[SourceQuality "1"]
[TimeControl "40/5400+30:1800+30"]

1. Nf3 f5 2. g3 Nf6 3. Bg2 g6 4. d4 Bg7 5. c4 d6 6. Nc3 O-O 7. O-O Qe8 (7... c6
8. b3 Qa5 $5 9. Rb1 $5 (9. Qc2) (9. Bd2 Qc7 10. d5 Na6 11. Rc1 Nc5 12. Be3 a5
13. Bd4 Bd7 (13... e6 {Shipkov}) 14. Ne5 {Timofeev,A (2668)-Volokitin,A (2681)
EU-Cup 25th Ohrid 2009 (3.3) 0-1}) (9. Bb2 e5 10. dxe5 dxe5 11. e4 f4 12. gxf4
Nh5 $44) 9... e5 {Manoeuvre,A (2150)-Sorbe,S (2361) Syre Memorial op 32nd 2009
(4) 1-0} (9... Qxc3 $4 10. Bd2)) 8. d5 (8. b3 {L'alternative} c6 (8... e5 9.
dxe5 dxe5 10. e4 Nc6 11. Nd5 Qd7 12. exf5 e4 13. Ng5 gxf5 14. Be3 Ng4 15. Bc5
Re8 16. f3 exf3 (16... e3 17. Qe2 Bxa1 18. fxg4 $44)) 9. Ba3 Na6 10. Qd3 Rb8
11. Nd2 b5 12. cxb5 cxb5 13. Nd5 Nxd5 14. Bxd5+ e6 15. Bg2 b4 (15... Qd7 $5 {
[%cal Gc8b7]}) 16. Bb2 Nc7 {Savchenko,S (2480)-Malaniuk,V (2520) URS-ch FL56
Simferopol 1988 1/2}) 8... Na6 9. Rb1 Bd7 10. b4 c6 11. dxc6 bxc6 12. a3 Kh8 ({
RR} 12... Ng4 13. Bb2 f4 14. Ne4 Bxb2 15. Rxb2 fxg3 16. hxg3 Qf7 17. b5 Nc7 18.
c5 d5 19. bxc6 Bxc6 20. Neg5 Qf5 21. Bh3 h5 22. Qb1 e5 23. Bxg4 hxg4 24. Nxe5
Qxe5 25. Qxg6+ Qg7 26. Qxc6 Rf6 27. Qb7 {Novikov,I (2611)-Dzhumaev,M (2495)/
Korinthos 2000/EXT 2001/1-0 (36)}) (12... Nc7 {La grande ligne} 13. Bb2 Ne6 (
13... Rb8)) 13. Bb2 Rb8 14. Ba1 Ng4 {[%cal Ge7e5]} 15. e3 c5 {[%csl Rd5]} (
15... Nc7) 16. b5 Nc7 17. a4 $14 Be6 18. Qd3 (18. Nd2 Qf7 {[%csl Rc4]}) 18...
h6 19. Nd5 Bxd5 20. Bxg7+ Kxg7 21. cxd5 {[%csl Rc7,Re6]} Qf7 22. Rfd1 Qf6 23.
h3 (23. Nd2 {[%cal Gd2c4]} Ne5 24. Qc2) 1/2-1/2

[Event "EU-ch 12th"]
[Site "Aix les Bains"]
[Date "2011.03.27"]
[Round "6"]
[White "Caruana, Fabiano"]
[Black "Kabanov, Nikolai"]
[Result "1/2-1/2"]
[ECO "E62"]
[WhiteElo "2716"]
[BlackElo "2524"]
[PlyCount "87"]
[EventDate "2011.03.22"]
[EventType "swiss"]
[EventRounds "11"]
[EventCountry "FRA"]
[SourceTitle "CBM 142 Extra"]
[Source "ChessBase"]
[SourceDate "2011.06.27"]
[SourceVersion "1"]
[SourceVersionDate "2011.06.27"]
[SourceQuality "1"]
[TimeControl "40/5400+30:1800+30"]

1. Nf3 Nf6 2. c4 g6 3. Nc3 Bg7 4. g3 O-O 5. Bg2 d6 6. O-O e5 7. d4 {Retombe
sur une Est-Indienne} Nc6 8. d5 Ne7 9. c5 (9. e4 {La grande ligne} a5 10. Ne1
Nd7 11. Nd3 b6 12. a4 f5 13. f4 Nc5 {Matamoros Franco,C (2490)-Garrido
Dominguez,J (2213) Seville op 29th 2004 (9) 1-0} (13... fxe4 14. Nxe4 exf4 15.
Nxf4 $14 {[%csl Ge4,Re6,Gf4][%cal Ge4g5]})) 9... Ne8 10. cxd6 Nxd6 (10... cxd6)
11. e4 Bg4 (11... h6 12. Nd2 f5 13. b3 fxe4 14. Ncxe4 Nef5 15. Ba3 Rf7 16. Rc1
Kh7 17. Re1 Nb5 18. Bb2 Nbd4 19. Nc5 Rb8 20. Nd3 Rd7 21. Nxe5 Rxd5 22. Bxd5
Qxd5 23. Rxc7 Ne6 24. Rxg7+ Nexg7 25. Ne4 {1-0 Ivanov,I (2606)-Meyer,J (2519)/
Pasadena 1983/EXT 2002}) 12. Qd3 Bxf3 13. Bxf3 c5 $146 (13... f5 14. Bg2 fxe4
15. Nxe4 Nxe4 16. Qxe4 Nf5 17. Bd2 Nd6 18. Qc2 Qd7 19. Rae1 Rf7 20. Bc3 Re8 21.
Re2 Bf6 22. Rfe1 Rfe7 23. h4 Kg7 24. a4 Qf5 25. Bb4 Rf7 26. Kh2 g5 27. Qxf5
Nxf5 28. hxg5 {Johannsson,I-Bjornsson,T/Reykjavik 1964/MCD/1-0 (31)}) 14. a3 {
[%cal Gb2b4]} f5 {[%csl Gd6]} 15. Bg2 f4 $132 16. Bh3 {[%cal Gh3e6]} h5 17. Qe2
Bh6 18. b4 (18. Be6+ Kh7) 18... c4 19. a4 Kh7 20. Nb5 $1 {[%csl Re5][%cal
Gc1b2]} Nxb5 21. axb5 {[%csl Ra7][%cal Ge2c4,Ga1a2,Gf1a1]} Nc8 22. Bb2 (22.
Qxc4 Nd6 23. Qd3 fxg3 24. hxg3 Bxc1 25. Rfxc1 (25. Raxc1)) 22... Bg7 23. Qxc4
Nd6 24. Qd3 Qb6 {[%cal Gb6g1,Gd6b5]} 25. Ra5 {[%cal Gf1a1,Ga5b5]} Rae8 26. Be6
Re7 27. Raa1 Nxb5 28. Rac1 f3 $13 {[%csl Rg2]} 29. Rfe1 a6 30. Re3 Bh6 31. Rxf3
Rxf3 $2 {Se trompe dans l'ordre de coups probablement а cause du zeitnot} (
31... Bxc1) 32. Qxf3 Bxc1 33. Bxc1 $4 {L'italien n'était pas en forme dans le
tournoi et il rate un coup intermédiaire} (33. Bxe5 $3 {[%cal Gf3f8,Gf8e7,
Gf8h8]} Qd8 34. Qf6 $18 Bh6 35. Bf7 {[%csl Rg6]} Rxf7 36. Qxf7+) 33... Nd4 34.
Qf8 Rg7 35. Bg8+ Kh8 36. Be6+ Kh7 37. Bg8+ Kh8 38. Kg2 $4 {J'ai vérifié la
feuille partie qui correspond а l'enregistrement du plateau dgt} (38. d6 Rxg8
39. Qh6#) 38... Qc7 39. Be6+ Kh7 40. Bg8+ Kh8 41. Bg5 Qc2 42. Be6+ Kh7 43. Bg8+
Kh8 44. Be6+ 1/2-1/2

[Event "EU-ch 12th"]
[Site "Aix les Bains"]
[Date "2011.03.28"]
[Round "7"]
[White "Romanishin, Oleg M"]
[Black "Caruana, Fabiano"]
[Result "0-1"]
[ECO "A16"]
[WhiteElo "2530"]
[BlackElo "2716"]
[PlyCount "106"]
[EventDate "2011.03.22"]
[EventType "swiss"]
[EventRounds "11"]
[EventCountry "FRA"]
[SourceTitle "CBM 142 Extra"]
[Source "ChessBase"]
[SourceDate "2011.06.27"]
[SourceVersion "1"]
[SourceVersionDate "2011.06.27"]
[SourceQuality "1"]
[TimeControl "40/5400+30:1800+30"]

1. Nf3 Nf6 2. g3 d5 3. Bg2 g6 4. c4 Bg7 5. cxd5 Nxd5 6. O-O Nc6 7. Nc3 (7. d4 {
[%cal Ge2e4] Tranpose sur une Gruenfeld}) 7... Nb6 (7... O-O) 8. d3 O-O 9. Be3
Bg4 (9... e5) (9... h6) 10. Qd2 Rb8 $146 (10... Qd7 {Krylov,M (2482)-Vorobjov,
D (2249) Moscow-ch sf 2009 (2) 1/2}) 11. Bh6 Bxh6 12. Qxh6 Bxf3 13. Bxf3 Nd4 $1
$132 {[%csl Gd4,Re2]} 14. Bg2 e5 15. Rfd1 Qe7 16. e3 {[%csl Rd3]} Nf5 17. Qh3
c6 18. Qg4 Rfd8 19. Qe2 Nd7 20. Bh3 Nd6 21. Rac1 Nf6 22. e4 $6 {[%csl Rd3,Rd4]}
Nb5 {[%cal Gb5d4]} 23. Nxb5 cxb5 24. Rc3 (24. d4 $5 exd4 25. Bg2 a6 26. Rd3
Rbc8 27. Rcd1 $44) 24... Rd4 25. Rdc1 Qd6 26. Bf1 Qe6 27. Rc5 a6 28. a3 Rbd8
29. Qe3 Kg7 30. Qg5 Re8 31. Rc7 h6 32. Qe3 Re7 33. Qe1 Rxc7 34. Rxc7 Qb6 35.
Qc1 b4 36. a4 Rd6 37. a5 $1 Qxa5 38. Rxb7 Rd7 39. Rb8 Rd8 40. Rb7 Rd7 41. Rb8 (
41. Rxd7 Nxd7 42. Qc6 Nf8 43. d4 $1 exd4 44. Bc4 $44 {[%csl Rf7]}) 41... Rc7
42. Qe1 Nd7 43. Rd8 Rc1 44. Qxc1 Qxd8 45. Qc6 Nf6 46. Qxa6 Qd4 47. Qa2 Ng4 48.
b3 Nf6 49. Bh3 Qxd3 50. Bf1 Qd4 51. Bc4 Nxe4 52. Kg2 Nd2 53. Qc2 Qc3 0-1

[Event "EU-ch 12th"]
[Site "Aix les Bains"]
[Date "2011.03.30"]
[Round "8"]
[White "Caruana, Fabiano"]
[Black "Palac, Mladen"]
[Result "1/2-1/2"]
[ECO "E08"]
[WhiteElo "2716"]
[BlackElo "2586"]
[Annotator "Marchand,A/Primel,D"]
[PlyCount "85"]
[EventDate "2011.03.22"]
[EventType "swiss"]
[EventRounds "11"]
[EventCountry "FRA"]
[SourceTitle "CBM 142 Extra"]
[Source "ChessBase"]
[SourceDate "2011.06.27"]
[SourceVersion "1"]
[SourceVersionDate "2011.06.27"]
[SourceQuality "1"]
[TimeControl "40/5400+30:1800+30"]

1. d4 Nf6 2. c4 e6 3. g3 Bb4+ 4. Bd2 (4. Nc3) 4... Be7 (4... Qe7) (4... a5) 5.
Bg2 d5 {Retombe sur une Catalane} 6. Nf3 O-O 7. O-O Nbd7 8. Qc2 c6 {La
variante fermée} 9. Rd1 (9. Bf4) (9. b3) (9. Nc3) 9... b6 (9... Ne4 $5 10. Bf4
(10. Be1) (10. Ne1 f5 11. e3 g5 12. f3 Nd6 13. cxd5 {Khairullin,I (2617)-Ortiz
Suarez,I (2544) Capablanca Memorial Premier 45th 2010 (1) 1/2}) 10... f5) 10.
Bf4 (10. b3 Bb7) 10... Ba6 (10... Bb7 11. Nc3 dxc4 (11... Nh5 12. Bc1 f5 13. b3
Rc8 14. Bb2 Bd6 15. e3 Qe7 16. Ne2 Nhf6 17. Nf4 Ne4 18. Ne5 Nxe5 19. dxe5 Bb8
20. a4 g5 21. Nd3 g4) 12. Nd2 {[%cal Gd2c4]}) 11. Ne5 (11. b3 {La grande ligne}
Rc8 {[%cal Gc8c2]} 12. Nc3 $1 dxc4 13. e4 (13. Nd2 Nd5) 13... Qe8 14. Nd2)
11... Rc8 (11... Nxe5 12. dxe5 Nd7 (12... Nh5 13. Be3) 13. cxd5 cxd5 14. e4 Rc8
15. Nc3 d4 16. Rxd4 Qc7 17. Rad1 Rfd8 (17... Nxe5 18. Qa4 Bb7 19. Rd7) 18. h4
h6 19. h5 Nc5 20. Bf1) 12. Nc3 $1 (12. cxd5 cxd5 13. Nc6 Bb5 14. Nxe7+ Qxe7 15.
Nc3 a5 16. Rac1 Ba6 {Ponomariov,R (2737)-Grischuk,A (2756) Amber-blindfold
19th rapid 2010 (2) 1/2}) 12... Bxc4 (12... b5 13. c5 b4 14. Nb1 Nxe5 15. Bxe5
Bb5 16. Nd2 a5 (16... Bxe2 17. Re1 Bb5 18. a3 a5 19. axb4 axb4 20. Ra7 $44))
13. Nxc4 dxc4 14. e4 $44 {[%csl Gd4,Ge4,Gf4,Gg2]} b5 ({RR} 14... Bb4 15. a4 a5
16. Na2 b5 17. Nxb4 axb4 18. b3 Qe7 19. bxc4 e5 20. dxe5 Nxe5 21. c5 b3 22.
Qxb3 Qxc5 23. Rac1 Qe7 24. axb5 cxb5 25. Rxc8 Rxc8 26. Qxb5 Ng6 27. Bd6 Qa7 28.
e5 Nd7 29. Qb7 {Yevseev,D (2527)-Mokshanov,A (2372)/St Petersburg 2011/1-0 (54)
}) (14... Nh5 $5) 15. a4 (15. d5 $5 {[%cal Gd1d8]} cxd5 16. exd5 e5 17. d6 $5 {
[%csl Re7]} exf4 (17... Bxd6 18. Rxd6 exf4 19. Rad1 $36) 18. Nxb5 fxg3 19. hxg3
Rc5 20. dxe7 Qxe7 21. Nd6 {[%cal Gd6c4]} Nb6 22. Rd4 $11 (22. Nf5 Qe6)) 15...
a6 16. axb5 ({RR} 16. d5 cxd5 17. exd5 e5 18. Bg5 b4 ({RR} 18... Qb6 19. Ne4
Bc5 20. a5) 19. d6 bxc3 20. Qxc3 h6 21. Be3) 16... axb5 17. Ra6 $146 {Un plan
naturel mais d5 semble plus fort et d'ailleurs aucune partie n'a repris depuis
un an cette idée Ra6} (17. d5 cxd5 18. exd5 e5 19. Bg5 b4 20. d6 $36 {Wang Hao
(2722)-Efimenko,Z (2677) Sarajevo Bosna op 40th 2010 (10) 1/2}) 17... Nb6 18.
Ra7 {[%csl Ga7][%cal Ga7e7,Gd4d5]} (18. Rda1 $5 {[%cal Ga6a7]} b4 19. Ne2 c5 $1
$132 (19... Nh5 20. Be3)) 18... Ra8 $1 19. Rc7 (19. Rb7 $5 Nh5 20. Be3 {
[%cal Ge3b6,Gd4d5] C'est la grande différence avec Rc7 qui a été joué dans la
partie}) 19... Nh5 $132 {[%csl Rc7,Rf4]} 20. Rxc6 {Les Blancs sont contraint
de faire de l'équilibrisme et la position de l'italien n'est pas saine} Nxf4
21. gxf4 b4 22. Ne2 Rc8 (22... Ra5 $5 {[%csl Gd5]}) 23. d5 $1 {[%cal Gd1d8]}
exd5 24. exd5 Bf6 25. Ng3 b3 26. Qe2 c3 27. bxc3 Na4 {[%csl Rc3] (=) Un bon
moment psychologique pour proposer la nulle} 28. Ne4 Nxc3 29. Nxc3 Bxc3 30. Bh3
(30. Be4 $5 {[%csl Rh7][%cal Ge2h5]}) 30... Rxc6 31. dxc6 Qb8 (31... Qb6 $5 {
[%cal Gb3b2,Gb6c6]}) 32. Qc4 b2 33. Rb1 Ba5 34. Qd4 Qc7 35. Bg2 Rb8 36. f5 {
[%cal Gf5f6]} (36. Rxb2 Rxb2 37. Qxb2 $11) 36... Rb4 {Recherche la nulle mais
Bb6 posait des problèmes aux Blancs} (36... Bb6 $1 {[%csl Rf2]} 37. Qe4 Qa7 {
[%csl Rf2]} 38. Qe2 Bd4 $15 {[%csl Gd4][%cal Gd4b2,Gd4f6]}) 37. Qe3 Qd8 38. Qe2
h6 39. Rxb2 Rxb2 40. Qxb2 Qd1+ 41. Bf1 Qg4+ 42. Bg2 Qd1+ 43. Bf1 1/2-1/2

[Event "Paris FIDE GP"]
[Site "Elancourt"]
[Date "2013.09.27"]
[Round "5"]
[White "Caruana, Fabiano"]
[Black "Ponomariov, Ruslan"]
[Result "1/2-1/2"]
[ECO "C67"]
[WhiteElo "2779"]
[BlackElo "2756"]
[Annotator "ChessBase Website"]
[PlyCount "92"]
[EventDate "2013.09.22"]
[EventType "tourn"]
[EventRounds "11"]
[EventCountry "FRA"]
[EventCategory "20"]
[SourceTitle "CBM 157"]
[Source "ChessBase"]
[SourceDate "2013.11.12"]
[SourceVersion "1"]
[SourceVersionDate "2013.11.12"]
[SourceQuality "1"]
[TimeControl "40/7200:20/3600:900+30"]
[WhiteClock "2:00:00"]
[BlackClock "2:00:00"]

1. e4 {[%emt 0:00:03]} e5 {[%emt 0:00:06]} 2. Nf3 {[%emt 0:00:03]} Nc6 {
[%emt 0:00:07]} 3. Bb5 {[%emt 0:00:04]} Nf6 {[%emt 0:00:13]} 4. O-O {[%emt 0:
00:06]} Nxe4 {[%emt 0:00:14]} 5. d4 {[%emt 0:00:05]} Nd6 {[%emt 0:00:10]} 6.
Bxc6 {[%emt 0:00:06]} dxc6 {[%emt 0:00:06]} 7. dxe5 {[%emt 0:00:05]} Nf5 {
[%emt 0:00:08]} 8. Qxd8+ {[%emt 0:00:06]} Kxd8 {[%emt 0:00:13]} 9. h3 {[%emt 0:
00:07]} h6 {[%emt 0:00:16]} 10. Rd1+ {[%emt 0:00:22]} Ke8 {[%emt 0:00:10]} 11.
Nc3 {[%emt 0:00:24]} Bd7 {[%emt 0:00:38]} (11... a6 12. Bf4 Bd7 13. Rd3 Ne7 14.
Rad1 Be6 15. Nd4 Bc4 16. R3d2 c5 17. Nb3 b6 18. e6 fxe6 19. Bxc7 Nd5 20. Nxd5
Bxd5 21. Bxb6 c4 22. Nc1 c3 23. bxc3 Rc8 24. Ba5 Be7 25. Nb3 Bf6 26. Bb4 Kf7
27. Rd3 Rc7 28. Na5 Rhc8 29. c4 Bxc4 30. Rd7+ Rxd7 31. Rxd7+ Ke8 32. Rd6 Bxa2
33. Rxa6 Rxc2 34. Rc6 Rb2 35. Ba3 Rb1+ 36. Rc1 Rxc1+ 37. Bxc1 Bd5 38. Be3 Kd7
39. Kf1 Kc7 40. Bd2 Kb6 41. f3 {Karjakin,S (2779)-Carlsen,M (2837) Astana 2012
0-1}) 12. Bf4 {[%emt 0:01:55]} Rd8 {[%emt 0:00:28]} 13. e6 {[%emt 0:21:46]}
Bxe6 {[%emt 0:01:08]} 14. Bxc7 {[%emt 0:00:07]} Rxd1+ $146 {[%emt 0:05:20]} (
14... Rd7 15. Rxd7 Kxd7 16. Bh2 Bd6 17. Rd1 Ke7 18. Bxd6+ Nxd6 19. Nd4 Bd7 {
1/2-1/2 (19) Hanemann,I (2188)-Huisl,W (2284) Germany 2009}) 15. Rxd1 {[%emt 0:
01:19]} Be7 {[%emt 0:00:17]} 16. g4 {[%emt 0:26:56]} Nh4 {[%emt 0:02:08]} 17.
Nd4 {[%emt 0:00:18]} Bd7 {[%emt 0:14:07]} 18. Re1 {[%emt 0:05:13]} Kf8 {
[%emt 0:09:12]} 19. Bg3 {[%emt 0:01:10]} g5 {[%emt 0:10:12]} 20. Bxh4 {[%emt 0:
03:01]} gxh4 {[%emt 0:01:04]} 21. Ne4 {[%emt 0:02:55]} Kg7 $11 {[%emt 0:17:56]
[%cal Gh8d8] Caruana posed no problems to Ponomariov's Berlin Defence, and it
was even the black player that held a slight edge due to his pair of bishops
and then an extra (but crippled) pawn. It's hard to say that White was in any
real danger at any point but it was certainly Black that had the easier game.}
22. Kg2 {[%emt 0:30:55]} Rd8 {[%emt 0:05:16]} 23. c3 {[%emt 0:01:14]} h5 {
[%emt 0:09:49]} 24. f3 {[%emt 0:06:10]} Bc8 {[%emt 0:11:08]} 25. Nf5+ {[%emt 0:
06:56]} Bxf5 {[%emt 0:00:30]} 26. gxf5 {[%emt 0:00:04]} Rd5 {[%emt 0:00:46]}
27. c4 {[%emt 0:00:03]} Rxf5 {[%emt 0:02:55]} 28. Rd1 {[%emt 0:00:04]} Ra5 {
[%emt 0:05:56]} 29. Rd7 {[%emt 0:01:01]} Bf6 {[%emt 0:02:32]} 30. Nxf6 {
[%emt 0:02:38]} Kxf6 {[%emt 0:00:12]} 31. a3 {[%emt 0:00:45]} Rc5 {[%emt 0:04:
26]} 32. Rxb7 {[%emt 0:00:13]} Rxc4 {[%emt 0:00:04]} 33. Rxa7 {[%emt 0:00:03]}
Rc2+ {[%emt 0:00:10]} 34. Kf1 {[%emt 0:00:08]} Rxb2 {[%emt 0:00:08]} 35. a4 {
[%emt 0:01:16]} Rh2 {[%emt 0:06:26]} 36. Rc7 {[%emt 0:00:17]} Rxh3 {[%emt 0:00:
44]} 37. Rxc6+ {[%emt 0:00:05]} Kg7 {[%emt 0:00:15]} 38. Rc3 {[%emt 0:00:45]}
Rh1+ {[%emt 0:01:29]} 39. Kg2 {[%emt 0:00:04]} Ra1 {[%emt 0:00:05]} 40. Rc4 {
[%emt 0:00:00]} Kg6 {[%emt 0:00:00]} 41. Rxh4 {[%emt 0:00:29]} Kg5 {[%emt 0:00:
42]} 42. Rb4 {[%emt 0:00:20]} f5 {[%emt 0:00:21]} 43. Kg3 {[%emt 0:00:54]} Rg1+
{[%emt 0:00:18]} 44. Kf2 {[%emt 0:00:09]} Ra1 {[%emt 0:00:05]} 45. Kg3 {
[%emt 0:00:02]} Rg1+ {[%emt 0:00:06]} 46. Kf2 {[%emt 0:00:02]} Ra1 {[%emt 0:00:
08]} 1/2-1/2

[Event "Paris FIDE GP"]
[Site "Elancourt"]
[Date "2013.09.28"]
[Round "6"]
[White "Caruana, Fabiano"]
[Black "Ivanchuk, Vassily"]
[Result "1-0"]
[ECO "C11"]
[WhiteElo "2779"]
[BlackElo "2731"]
[Annotator "ChessBase Website"]
[PlyCount "65"]
[EventDate "2013.09.22"]
[EventType "tourn"]
[EventRounds "11"]
[EventCountry "FRA"]
[EventCategory "20"]
[SourceTitle "CBM 157"]
[Source "ChessBase"]
[SourceDate "2013.11.12"]
[SourceVersion "1"]
[SourceVersionDate "2013.11.12"]
[SourceQuality "1"]
[TimeControl "40/7200:20/3600:900+30"]
[WhiteClock "2:00:00"]
[BlackClock "2:00:00"]

1. e4 {[%emt 0:00:03]} e6 {[%emt 0:00:19]} 2. d4 {[%emt 0:00:05]} d5 {[%emt 0:
00:02]} 3. Nc3 {[%emt 0:00:04]} Nf6 {[%emt 0:00:04]} 4. e5 {[%emt 0:00:04]}
Nfd7 {[%emt 0:00:05]} 5. f4 {[%emt 0:00:03]} c5 {[%emt 0:00:06]} 6. Nf3 {
[%emt 0:00:04]} Nc6 {[%emt 0:00:04]} 7. Be3 {[%emt 0:00:04]} Qb6 {[%emt 0:00:
38]} 8. Na4 {[%emt 0:00:32]} Qa5+ {[%emt 0:00:06]} 9. c3 {[%emt 0:00:03]} c4 {
[%emt 0:00:04]} 10. b4 {[%emt 0:02:23]} Qc7 {[%emt 0:00:04]} 11. Be2 {[%emt 0:
04:27]} Be7 {[%emt 0:00:22]} 12. O-O {[%emt 0:03:16]} O-O {[%emt 0:00:18]} 13.
Qc2 {[%emt 0:07:52]} b5 {[%emt 0:12:38]} 14. Nc5 {[%emt 0:01:02]} Nxc5 {
[%emt 0:00:55]} 15. dxc5 {[%emt 0:00:14]} a5 {[%emt 0:00:05]} 16. a3 {[%emt 0:
00:11]} Bd7 $2 {[%emt 0:03:40] Ivanchuk: "I was calculating 16...f6 but then
my hands moved 16...Bd7?"} 17. Nd4 {[%emt 0:03:20]} Nxd4 {[%emt 0:00:05]} 18.
Bxd4 {[%emt 0:00:05]} axb4 $6 {[%emt 0:00:23]} (18... Ra6 $142 {[%cal Gf8a8]})
19. axb4 {[%emt 0:05:48]} Rxa1 {[%emt 0:00:05]} 20. Rxa1 {[%emt 0:00:04]} Qb7 {
[%emt 0:00:01]} 21. Qa2 {[%emt 0:41:14]} Bc6 {[%emt 0:00:10]} 22. Qb1 {[%emt 0:
00:04]} (22. Bg4 Ra8 23. Qxa8+ Qxa8 24. Rxa8+ Bxa8 25. f5 exf5 26. Bxf5 Bc6)
22... f5 {[%emt 0:04:47]} 23. exf6 {[%emt 0:05:02]} Bxf6 {[%emt 0:00:07]} 24.
Qd1 {[%emt 0:02:38]} Ra8 {[%emt 0:00:04]} (24... Qc7 25. Ra6) 25. Rxa8+ {
[%emt 0:03:51]} Qxa8 {[%emt 0:00:09]} 26. Bg4 {[%emt 0:01:32]} Bd7 {[%emt 0:00:
42]} 27. h3 {[%emt 0:01:28]} Qe8 {[%emt 0:00:24]} 28. Qd2 {[%emt 0:01:24]} Qf7
{[%emt 0:00:21]} 29. Qe3 {[%emt 0:00:48]} Bxd4 {[%emt 0:00:06]} 30. Qxd4 {
[%emt 0:01:04]} Qf6 {[%emt 0:00:01]} 31. Qxf6 {[%emt 0:15:16]} gxf6 {[%emt 0:
00:09]} 32. Kf2 {[%emt 0:00:03]} Kf7 {[%emt 0:02:01]} 33. Ke3 {[%emt 0:00:51]}
(33. Ke3 Bc6 34. Kd4 Ke7 35. Bh5 h6 36. g4 {[%cal Gh3h4,Gg4g5] Dorfman}) 1-0